bitfinex-derivatives/quotes_ETHF0:USTF0_20260119
["timestamp","ask_amount","ask_price","bid_price","bid_amount"]
[1768815770681,0.960329,3211.0,3209.4,0.14465139]
[1768815770881,0.960329,3210.9,3209.4,0.14465139]
[1768815771081,0.960329,3210.8,3209.4,0.14465139]
[1768815771283,0.960329,3210.7,3209.4,0.14465139]
[1768815771478,0.00254579,3210.9,3209.4,0.14465139]
[1768815771783,0.96028606,3210.8,3209.4,0.14465139]
[1768815772082,0.96028606,3210.7,3209.5,0.14465139]
[1768815772278,0.00254579,3210.9,3209.5,0.14465139]
[1768815772484,0.96033126,3210.8,3209.5,0.14465139]
[1768815772683,0.96033126,3210.7,3209.5,0.14465139]
[1768815772883,0.00254579,3210.9,3209.5,0.14465139]
[1768815773086,0.96033027,3210.8,3209.5,0.14465139]
[1768815773282,0.96033027,3210.7,3209.5,0.14465139]
[1768815773486,0.00254579,3210.9,3209.5,0.14465139]
[1768815773693,0.96042932,3210.8,3209.5,0.14465139]
[1768815773878,0.96042932,3210.7,3209.5,0.14465139]
[1768815774178,0.00254579,3210.9,3209.5,0.14465139]
[1768815774377,0.96042939,3210.8,3209.5,0.14465139]
[1768815774676,0.96042939,3210.7,3209.5,0.14465139]
[1768815774878,0.00254579,3210.9,3209.5,0.14465139]
[1768815775074,0.96048637,3210.8,3209.5,0.14465139]
[1768815775274,0.96048637,3210.7,3209.5,0.14465139]
[1768815775475,0.00254579,3210.9,3209.5,0.14465139]
[1768815775782,0.96058733,3210.8,3209.5,0.14465139]
[1768815775985,0.96058733,3210.7,3209.5,0.14465139]
[1768815776285,1.03623424,3210.8,3209.5,0.14465139]
[1768815776492,0.96068172,3210.7,3209.5,0.14465139]
[1768815776694,1.03623424,3210.8,3209.5,0.14465139]
[1768815776889,0.96068465,3210.7,3209.5,0.14465139]
[1768815777090,1.03623424,3210.8,3209.5,0.14465139]
[1768815777285,0.96069509,3210.7,3209.5,0.14465139]
[1768815777491,0.96069509,3210.6,3209.5,0.14465139]
[1768815777795,1.03623424,3210.8,3209.5,0.14465139]
[1768815777998,0.96081438,3210.7,3209.5,0.14465139]
[1768815778288,0.96081438,3210.6,3209.5,0.14465139]
[1768815778493,1.03623424,3210.8,3209.5,0.14465139]
[1768815778693,0.96099061,3210.7,3209.5,0.14465139]
[1768815778888,0.96099061,3210.6,3209.5,0.14465139]
[1768815779090,1.03623424,3210.8,3209.5,0.14465139]
[1768815779295,0.96099251,3210.7,3209.5,0.14465139]
[1768815779497,0.96099251,3210.6,3209.5,0.14465139]
[1768815779686,1.03623424,3210.8,3209.5,0.14465139]
[1768815779886,0.96120728,3210.7,3209.5,0.14465139]
[1768815780096,0.96120728,3210.6,3209.5,0.14465139]
[1768815780290,1.03623424,3210.8,3209.5,0.14465139]
[1768815780594,0.96140254,3210.7,3209.5,0.14465139]
[1768815780788,0.96140254,3210.6,3209.5,0.14465139]
[1768815780989,1.03623424,3210.8,3209.5,0.14465139]
[1768815781190,0.96140087,3210.7,3209.5,0.14465139]
[1768815781389,0.96140087,3210.6,3209.5,0.14465139]
[1768815781594,0.96140087,3210.5,3209.5,0.14465139]
[1768815781797,1.03623424,3210.8,3209.5,0.14465139]
[1768815781991,0.96172118,3210.7,3209.5,0.14465139]
[1768815782288,0.96172118,3210.6,3209.5,0.14465139]
[1768815782497,0.96172118,3210.5,3209.5,0.14465139]
[1768815782692,0.96172118,3210.4,3209.5,0.14465139]
[1768815782997,1.03623424,3210.8,3209.5,0.14465139]
[1768815783193,0.96196798,3210.7,3209.5,0.14465139]
[1768815783395,0.96196798,3210.6,3209.5,0.14465139]
[1768815783696,0.96196798,3210.5,3209.5,0.14465139]
[1768815783996,0.96196798,3210.4,3209.5,0.14465139]
[1768815784188,1.03623424,3210.8,3209.5,0.14465139]
[1768815784390,0.96219657,3210.7,3209.5,0.14465139]
[1768815784591,0.96219657,3210.6,3209.5,0.14465139]
[1768815784792,0.96219657,3210.5,3209.5,0.14465139]
[1768815784992,0.96219657,3210.4,3209.5,0.14465139]
[1768815785199,0.96219657,3210.3,3209.1,0.13838031]
[1768815785400,0.96219657,3210.3,3208.7,0.1559]
[1768815785401,1.03623424,3210.0,3208.7,0.29428031]
[1768815785699,0.96219657,3209.9,3208.7,0.29428031]
[1768815786592,0.96219657,3209.9,3208.8,0.13838031]
[1768815787702,2.22673698,3210.6,3208.9,0.13838031]
[1768815787703,1.67213026,3210.6,3208.9,0.13838031]
[1768815788095,2.6351167,3210.6,3208.9,0.13838031]
[1768815788802,3.97413024,3210.5,3208.9,0.13838031]
[1768815788990,0.96298644,3210.4,3208.9,0.13838031]
[1768815798305,2.6351167,3210.4,3208.9,0.13838031]
[1768815799203,0.96298644,3210.3,3209.0,0.13838031]
[1768815799404,0.96298644,3210.2,3209.0,0.13838031]
[1768815799703,1.67213026,3210.8,3209.2,0.13838031]
[1768815799908,2.63575915,3210.8,3209.2,0.13838031]
[1768815801008,2.63575915,3210.8,3209.7,0.00467508]
[1768815802306,0.96362889,3210.7,3209.7,0.00467508]
[1768815802508,0.96362889,3210.6,3209.7,0.00467508]
[1768815802699,0.96362889,3210.5,3209.7,0.00467508]
[1768815802901,0.96362889,3210.4,3209.7,0.00467508]
[1768815803195,0.96362889,3210.3,3209.7,0.00467508]
[1768815803403,3.41067605,3210.9,3209.7,0.00467508]
[1768815803701,0.9638501,3210.8,3209.7,0.14489643]
[1768815803902,0.9638501,3210.7,3209.7,0.14489643]
[1768815804209,0.9638501,3210.6,3209.7,0.14489643]
[1768815804409,0.9638501,3210.5,3209.7,0.14489643]
[1768815804612,0.9638501,3210.4,3209.7,0.14489643]
[1768815804805,0.9638501,3210.3,3209.7,0.14489643]
[1768815805110,3.41067605,3210.9,3209.7,0.14489643]
[1768815805311,0.96389992,3210.8,3209.7,0.14489643]
[1768815805510,0.96389992,3210.7,3209.7,0.14489643]
[1768815805708,0.96389992,3210.6,3209.7,0.14489643]
[1768815805899,0.96389992,3210.5,3209.7,0.14489643]
[1768815806099,0.96389992,3210.4,3209.7,0.14489643]
[1768815806305,3.41567605,3210.9,3209.7,0.14489643]
[1768815806508,0.96402347,3210.8,3209.7,0.14489643]
[1768815806711,0.96402347,3210.7,3209.7,0.14489643]
[1768815806912,0.96402347,3210.6,3209.7,0.14489643]
[1768815807206,0.96402347,3210.5,3209.7,0.14489643]
[1768815807408,0.96402347,3210.4,3209.7,0.14489643]
[1768815807609,3.41767605,3210.9,3209.7,0.14489643]
[1768815807809,0.96466968,3210.8,3209.7,0.14489643]
[1768815808013,0.96466968,3210.7,3209.7,0.14489643]
[1768815808309,0.96466968,3210.6,3209.7,0.14489643]
[1768815808614,0.96466968,3210.5,3209.7,0.14489643]
[1768815808805,0.96466968,3210.4,3209.7,0.14489643]
[1768815809005,1.67467605,3210.9,3209.7,0.14489643]
[1768815809208,0.96470192,3210.8,3209.7,0.14489643]
[1768815809406,0.96470192,3210.7,3209.7,0.14489643]
[1768815809603,0.96470192,3210.6,3209.3,0.29610135]
[1768815809808,0.969377,3210.6,3209.3,0.29610135]
[1768815810015,1.03623424,3210.3,3208.9,0.14022135]
[1768815810211,0.96470192,3210.2,3208.9,0.14022135]
[1768815812011,1.67213026,3210.2,3208.6,0.29613135]
[1768815812316,1.03623424,3209.9,3208.6,0.29613135]
[1768815812516,0.96470192,3209.8,3208.7,0.14022135]
[1768815814320,0.96470192,3209.8,3208.2,0.14022135]
[1768815815121,1.03623424,3209.5,3208.2,0.14022135]
[1768815815318,0.96470192,3209.4,3208.2,0.14022135]
[1768815815519,0.96470192,3209.3,3208.2,0.14022135]
[1768815815711,0.96470192,3209.2,3208.2,0.14022135]
[1768815815913,1.03623424,3209.5,3208.2,0.14022135]
[1768815816113,0.96483393,3209.4,3208.2,0.14022135]
[1768815816419,0.96483393,3209.4,3208.0,0.15843476]
[1768815816420,0.96483393,3209.3,3208.0,0.00249476]
[1768815816719,0.96483393,3209.2,3208.0,0.00249476]
[1768815816919,0.96483393,3209.1,3208.0,0.00249476]
[1768815817120,0.96483393,3209.0,3208.0,0.00249476]
[1768815817324,0.00467508,3208.9,3208.0,0.00249476]
[1768815817715,0.00467508,3208.9,3208.0,0.14271611]
[1768815817914,1.03623424,3208.7,3207.4,0.15597]
[1768815819026,1.03623424,3208.7,3207.4,0.00232918]
[1768815819221,0.96310544,3208.6,3207.4,0.00232918]
[1768815819420,0.00322949,3208.6,3207.4,0.00232918]
[1768815821029,1.0375503,3208.3,3207.4,0.00232918]
[1768815822930,1.0375503,3208.5,3207.4,0.00232918]
[1768815823129,0.00322949,3208.6,3207.6,0.13046679]
[1768815828535,0.00322949,3208.6,3207.4,0.00232918]
[1768815828536,0.00322949,3208.6,3207.8,0.13046679]
[1768815829531,0.00322949,3208.6,3207.8,0.28641679]
[1768815829737,0.00322949,3208.6,3207.9,0.13046679]
[1768815834339,0.00322949,3208.6,3207.9,1.32396709]
[1768815834731,0.00322949,3208.6,3208.0,0.13183157]
[1768815840333,0.00467508,3208.9,3208.0,0.13183157]
[1768815841339,0.00729816,3208.9,3208.0,0.13183157]
[1768815841843,0.00729816,3208.9,3208.1,0.13183157]
[1768815842142,1.04484846,3208.9,3208.0,0.15594]
[1768815842543,1.04484846,3208.9,3207.7,0.13183157]
[1768815843444,0.00729816,3208.9,3208.0,0.13183157]
[1768815843743,0.00729816,3208.9,3208.2,0.13183157]
[1768815844144,1.0375503,3209.6,3208.2,0.13183157]
[1768815844334,0.96521244,3209.5,3208.2,0.13183157]
[1768815844537,0.96521244,3209.4,3208.2,0.13183157]
[1768815844736,0.96521244,3209.3,3208.2,0.13183157]
[1768815844936,0.96521244,3209.2,3208.2,0.13183157]
[1768815845136,0.00227107,3209.2,3208.2,0.13183157]
[1768815848147,0.00227107,3209.2,3208.2,0.28776157]
[1768815848351,0.00227107,3209.2,3208.5,0.13183157]
[1768815848546,1.67213026,3209.8,3208.5,0.13183157]
[1768815848547,2.70968056,3209.9,3208.5,0.13183157]
[1768815848743,0.96510692,3209.8,3208.5,0.13183157]
[1768815848946,0.96510692,3209.7,3208.5,0.13183157]
[1768815849148,0.96510692,3209.6,3208.5,0.13183157]
[1768815849344,0.96510692,3209.5,3208.5,0.13183157]
[1768815849544,0.96510692,3209.4,3208.5,0.13183157]
[1768815849746,0.00266224,3209.5,3208.5,0.13183157]
[1768815849949,0.96514543,3209.4,3208.5,0.13183157]
[1768815850157,0.00266224,3209.5,3208.5,0.13183157]
[1768815850447,0.96516874,3209.4,3208.5,0.13183157]
[1768815850646,0.00266224,3209.5,3208.5,0.13183157]
[1768815850847,0.96516795,3209.4,3208.5,0.13183157]
[1768815851048,0.00266224,3209.5,3208.6,0.13183157]
[1768815851243,0.96517727,3209.4,3208.6,0.13183157]
[1768815851447,0.00266224,3209.5,3208.6,0.13183157]
[1768815853854,1.0375503,3209.4,3208.6,0.13183157]
[1768815854251,0.00266224,3209.5,3208.6,0.13183157]
[1768815854451,0.96529175,3209.4,3208.6,0.13183157]
[1768815854651,0.00266224,3209.5,3208.6,0.13183157]
[1768815854859,0.96529103,3209.4,3208.6,0.13183157]
[1768815855058,0.00266224,3209.5,3208.6,0.13183157]
[1768815855261,0.96540228,3209.4,3208.6,0.13183157]
[1768815855557,0.00266224,3209.5,3208.6,0.13183157]
[1768815855757,0.96546676,3209.4,3208.6,0.13183157]
[1768815855959,0.00266224,3209.5,3208.6,0.13183157]
[1768815856160,0.96546796,3209.4,3208.6,0.13183157]
[1768815856358,0.00266224,3209.5,3208.6,0.13183157]
[1768815856665,0.96556672,3209.4,3208.6,0.13183157]
[1768815856956,0.00266224,3209.5,3208.6,0.13183157]
[1768815857158,0.96556673,3209.4,3208.6,0.13183157]
[1768815857459,0.00266224,3209.5,3208.6,0.13183157]
[1768815857757,0.96570166,3209.4,3208.6,0.13183157]
[1768815857957,0.00266224,3209.5,3208.6,0.13183157]
[1768815858164,0.96570148,3209.4,3208.6,0.13183157]
[1768815858347,0.00266224,3209.5,3208.6,0.13183157]
[1768815858657,0.96587734,3209.4,3208.6,0.13183157]
[1768815858844,0.00266224,3209.5,3208.6,0.13183157]
[1768815859050,0.96587575,3209.4,3208.6,0.13183157]
[1768815859255,1.0375503,3209.2,3208.2,0.13183157]
[1768815859461,0.00266224,3209.5,3207.9,0.15595]
[1768815859462,1.0375503,3208.7,3207.9,0.15595]
[1768815859951,1.0375503,3208.7,3207.8,0.13183157]
[1768815860158,1.0375503,3208.5,3207.4,0.13416075]
[1768815860757,1.0375503,3208.6,3207.4,0.13416075]
[1768815862965,1.81309762,3209.2,3207.4,0.13416075]
[1768815863166,1.0375503,3208.6,3207.4,0.13416075]
[1768815866263,1.67213026,3209.1,3207.4,0.13416075]
[1768815866463,1.0375503,3208.6,3207.4,0.13416075]
[1768815867259,1.0375503,3208.6,3207.4,0.29013075]
[1768815868877,1.0375503,3208.4,3207.4,0.29013075]
[1768815869370,1.0375503,3208.6,3207.4,0.29013075]
[1768815869773,1.0375503,3208.6,3207.5,0.15596]
[1768815875374,0.1411677,3209.0,3207.5,0.15596]
[1768815875574,1.0375503,3208.6,3207.5,0.15596]
[1768815882882,1.17860652,3209.0,3207.5,0.15596]
[1768815883183,0.96320682,3208.9,3207.5,0.15596]
[1768815883377,0.96320682,3208.8,3207.5,0.15596]
[1768815883577,0.96320682,3208.7,3207.5,0.15596]
[1768815883778,0.96320682,3208.6,3207.5,0.15596]
[1768815883977,1.17860652,3209.0,3207.5,0.15596]
[1768815884183,0.96340686,3208.9,3207.5,0.15596]
[1768815884376,0.96340686,3208.8,3207.5,0.15596]
[1768815884576,1.17860652,3209.0,3207.5,0.15596]
[1768815884577,0.96340686,3208.7,3207.5,0.15596]
[1768815884777,0.96361064,3208.6,3207.6,0.15596]
[1768815884978,1.67213026,3209.2,3207.7,0.13290221]
[1768815885280,0.96364099,3209.1,3207.7,0.13290221]
[1768815885481,0.96364099,3209.0,3207.7,0.13290221]
[1768815885683,0.96364099,3208.9,3207.7,0.13290221]
[1768815885981,0.96364099,3208.8,3207.7,0.13290221]
[1768815886182,0.96364099,3208.7,3207.7,0.13290221]
[1768815886386,1.67213026,3209.2,3207.8,0.13290221]
[1768815886683,0.96425992,3209.1,3208.1,0.13290221]
[1768815886872,0.96425992,3209.0,3208.1,0.13290221]
[1768815887076,1.6747925,3209.5,3208.1,0.13290221]
[1768815887385,0.96430045,3209.4,3208.1,0.13290221]
[1768815887586,0.96430045,3209.3,3208.1,0.13290221]
[1768815887783,0.96430045,3209.2,3208.1,0.13290221]
[1768815887976,0.96430045,3209.1,3208.1,0.13290221]
[1768815888178,0.96430045,3209.0,3208.1,0.13290221]
[1768815888378,0.96493863,3208.9,3208.1,0.13290221]
[1768815888578,1.6747925,3209.5,3208.1,0.13290221]
[1768815888886,0.96493863,3209.4,3208.1,0.13290221]
[1768815889086,0.96493863,3209.3,3208.1,0.13290221]
[1768815889287,0.96493863,3209.2,3208.1,0.13290221]
[1768815889475,0.96493863,3209.1,3208.1,0.13290221]
[1768815889678,0.96493863,3209.0,3208.1,0.13290221]
[1768815889885,0.96493863,3208.9,3208.1,0.13290221]
[1768815890086,1.67213026,3209.4,3208.1,0.13290221]
[1768815890285,2.63751577,3209.4,3208.1,0.13290221]
[1768815890486,0.00266224,3209.5,3208.1,0.13290221]
[1768815890487,0.96538551,3209.3,3208.1,0.13290221]
[1768815890687,0.96538551,3209.2,3208.1,0.13290221]
[1768815890888,0.96538551,3209.1,3208.1,0.13290221]
[1768815891089,0.96538551,3209.0,3208.1,0.13290221]
[1768815891290,1.6747925,3209.5,3208.1,0.13290221]
[1768815891494,0.96521452,3209.4,3208.1,0.13290221]
[1768815891693,0.96521452,3209.3,3208.1,0.13290221]
[1768815891894,0.96521452,3209.2,3208.1,0.13290221]
[1768815892095,0.96521452,3209.1,3208.1,0.13290221]
[1768815892285,0.96521452,3209.0,3208.1,0.13290221]
[1768815892485,1.6747925,3209.5,3208.1,0.13290221]
[1768815892699,0.96507941,3209.4,3208.1,0.13290221]
[1768815892990,0.96507941,3209.3,3208.1,0.13290221]
[1768815893188,0.96507941,3209.2,3208.1,0.13290221]
[1768815893388,0.96507941,3209.1,3208.1,0.13290221]
[1768815893588,0.96507941,3209.0,3208.1,0.13290221]
[1768815893790,1.81001165,3209.5,3208.0,0.15594]
[1768815893995,0.96496376,3209.4,3208.0,0.15594]
[1768815894196,0.96496376,3209.3,3208.0,0.15594]
[1768815894494,0.96496376,3209.2,3208.0,0.15594]
[1768815894687,0.96496376,3209.1,3208.0,0.15594]
[1768815894888,0.96496376,3209.0,3208.0,0.15594]
[1768815895095,0.96484654,3208.9,3208.0,0.15594]
[1768815895295,1.17265797,3209.3,3208.0,0.15594]
[1768815895492,0.96479641,3209.2,3208.0,0.15594]
[1768815895691,0.96479641,3209.1,3208.0,0.15594]
[1768815895894,0.96479641,3209.0,3208.0,0.15594]
[1768815896195,1.17265797,3209.3,3208.0,0.15594]
[1768815896397,0.96482057,3209.2,3208.0,0.15594]
[1768815896598,0.96482057,3209.1,3208.0,0.15594]
[1768815896790,0.96482057,3209.0,3208.0,0.15594]
[1768815896990,1.17265797,3209.3,3208.0,0.15594]
[1768815897288,0.96478177,3209.2,3208.0,0.15594]
[1768815897588,0.96478177,3209.1,3208.0,0.15594]
[1768815897788,0.96478177,3209.0,3208.0,0.15594]
[1768815897986,1.17265797,3209.3,3208.0,0.15594]
[1768815898196,0.96475157,3209.2,3208.0,0.15594]
[1768815898395,0.96475157,3209.1,3208.0,0.15594]
[1768815898598,0.96475157,3209.0,3208.0,0.15594]
[1768815898799,1.17265797,3209.3,3208.0,0.15594]
[1768815898998,0.96505702,3209.2,3208.0,0.15594]
[1768815899199,0.96505702,3209.1,3208.0,0.15594]
[1768815899406,0.96505702,3209.0,3208.0,0.15594]
[1768815899602,1.17265797,3209.3,3208.0,0.15594]
[1768815899799,0.9650606,3209.2,3208.0,0.15594]
[1768815900001,0.9650606,3209.1,3208.0,0.15594]
[1768815900196,0.9650606,3209.0,3208.0,0.15594]
[1768815900397,1.03743882,3209.3,3208.0,0.15594]
[1768815900694,0.96605736,3209.2,3208.0,0.15594]
[1768815900893,0.96605736,3209.1,3208.0,0.15594]
[1768815901096,0.96605736,3209.0,3208.0,0.15594]
[1768815901295,1.6747925,3209.5,3208.3,0.00467508]
[1768815901492,0.96605707,3209.4,3208.3,0.00467508]
[1768815901698,0.96605707,3209.3,3208.3,0.00467508]
[1768815901996,0.96605707,3209.2,3208.3,0.00467508]
[1768815902198,0.96605707,3209.1,3208.3,0.00467508]
[1768815902398,0.13788139,3209.5,3208.3,0.00467508]
[1768815902599,0.96600682,3209.4,3208.3,0.14740602]
[1768815902794,0.96600682,3209.3,3208.3,0.14740602]
[1768815903000,0.96600682,3209.2,3208.3,0.14740602]
[1768815903197,0.00266224,3209.5,3208.3,0.14740602]
[1768815903396,0.96607694,3209.4,3208.3,0.30332602]
[1768815903595,0.00266224,3209.5,3208.4,0.14273094]
[1768815903895,0.9662183,3209.4,3208.4,0.14273094]
[1768815904093,0.00266224,3209.5,3208.4,0.14273094]
[1768815904300,0.9660381,3209.4,3208.4,0.14273094]
[1768815904501,0.00266224,3209.5,3208.4,0.14273094]
[1768815904805,0.96604996,3209.4,3208.4,0.14273094]
[1768815905102,0.00266224,3209.5,3208.4,0.29865094]
[1768815905406,0.96590847,3209.4,3208.4,0.29865094]
[1768815905700,0.00266224,3209.5,3208.4,0.29865094]
[1768815905899,0.96592077,3209.4,3208.4,0.29865094]
[1768815906107,0.00266224,3209.5,3208.5,0.29865094]
[1768815906293,0.00266224,3209.5,3208.6,0.14273094]
[1768815910012,0.00266224,3209.5,3208.5,0.15592]
[1768815910412,0.96558606,3209.4,3208.5,0.15592]
[1768815910710,0.00266224,3209.5,3208.5,0.15592]
[1768815910916,0.96558835,3209.4,3208.5,0.15592]
[1768815911218,0.00266224,3209.5,3208.5,0.15592]
[1768815911415,0.96561437,3209.4,3208.5,0.15592]
[1768815911618,0.00266224,3209.5,3208.5,0.15592]
[1768815911802,0.96561437,3209.4,3208.5,0.15592]
[1768815912120,0.00266224,3209.5,3208.5,0.15592]
[1768815912317,0.96559533,3209.4,3208.5,0.15592]
[1768815912613,0.00266224,3209.5,3208.5,0.15592]
[1768815912814,0.96569603,3209.4,3208.5,0.15592]
[1768815913011,0.00266224,3209.5,3208.5,0.15592]
[1768815913213,0.96560342,3209.4,3208.5,0.15592]
[1768815913414,0.00266224,3209.5,3208.5,0.29865094]
[1768815913607,0.9657101,3209.4,3208.5,0.29865094]
[1768815913806,0.00266224,3209.5,3208.5,0.29865094]
[1768815914013,0.96571078,3209.4,3208.5,0.29865094]
[1768815914212,0.00266224,3209.5,3208.5,0.29865094]
[1768815914410,0.9656992,3209.4,3208.5,0.29865094]
[1768815914609,0.00266224,3209.5,3208.5,0.29865094]
[1768815914810,0.96560394,3209.4,3208.5,0.29865094]
[1768815915011,0.00266224,3209.5,3208.5,0.29865094]
[1768815915207,0.96556411,3209.4,3208.5,0.29865094]
[1768815915406,0.00266224,3209.5,3208.5,0.29865094]
[1768815915608,0.9657373,3209.4,3208.5,0.29865094]
[1768815915813,0.00266224,3209.5,3208.5,0.29865094]
[1768815916009,0.96573811,3209.4,3208.5,0.29865094]
[1768815916211,0.00266224,3209.5,3208.5,0.29865094]
[1768815916404,0.96573947,3209.4,3208.5,0.29865094]
[1768815916608,0.00266224,3209.5,3208.5,0.29865094]
[1768815916804,0.96594656,3209.4,3208.5,0.29865094]
[1768815917012,0.00266224,3209.5,3208.5,0.29865094]
[1768815917316,0.96594204,3209.4,3208.5,0.29865094]
[1768815917516,0.00266224,3209.5,3208.5,0.29865094]
[1768815917818,0.96594855,3209.4,3208.5,0.15592]
[1768815918014,0.00266224,3209.5,3208.3,0.00467508]
[1768815918210,0.96594578,3209.4,3208.3,0.00467508]
[1768815918521,0.00266224,3209.5,3208.3,0.00467508]
[1768815918722,0.96595873,3209.4,3208.3,0.00467508]
[1768815918923,0.00266224,3209.5,3208.3,0.00467508]
[1768815919117,0.96595881,3209.4,3208.3,0.00467508]
[1768815919311,0.96594703,3209.3,3208.3,0.00467508]
[1768815919511,0.00266224,3209.5,3208.3,0.00467508]
[1768815919710,0.96596656,3209.4,3208.3,0.00467508]
[1768815919912,0.96596656,3209.3,3208.3,0.00467508]
[1768815920112,0.00266224,3209.5,3208.3,0.00467508]
[1768815920318,0.96598908,3209.4,3208.3,0.00467508]
[1768815920521,0.96598908,3209.3,3208.3,0.00467508]
[1768815920719,0.00266224,3209.5,3208.3,0.00467508]
[1768815920911,0.96602384,3209.4,3208.3,0.00467508]
[1768815921219,0.00266224,3209.5,3208.3,0.00467508]
[1768815921417,0.96604962,3209.4,3208.3,0.00467508]
[1768815921616,0.00266224,3209.5,3208.3,0.00467508]
[1768815921919,0.96606623,3209.4,3208.3,0.00467508]
[1768815922116,0.00266224,3209.5,3208.3,0.00467508]
[1768815922317,0.96609299,3209.4,3208.3,0.00467508]
[1768815922516,0.00266224,3209.5,3208.3,0.00467508]
[1768815922716,0.96611571,3209.4,3208.3,0.00467508]
[1768815922918,0.00266224,3209.5,3208.3,0.00467508]
[1768815923121,0.96611461,3209.4,3208.3,0.00467508]
[1768815923316,1.03743882,3209.4,3208.3,0.00467508]
[1768815923625,0.96614606,3209.3,3208.3,0.00467508]
[1768815923821,0.96614606,3209.2,3208.3,0.00467508]
[1768815924126,0.00266224,3209.5,3208.3,0.00467508]
[1768815924321,0.96616174,3209.4,3208.3,0.00467508]
[1768815924525,0.96616174,3209.3,3208.3,0.00467508]
[1768815924729,0.00266224,3209.5,3208.3,0.00467508]
[1768815925024,0.96620014,3209.4,3208.3,0.00467508]
[1768815925227,0.96620014,3209.3,3208.3,0.00467508]
[1768815925524,0.00266224,3209.5,3208.3,0.00467508]
[1768815925720,0.96633905,3209.4,3208.3,0.00467508]
[1768815925926,0.96633905,3209.3,3208.3,0.00467508]
[1768815926128,0.00266224,3209.5,3208.3,0.00467508]
[1768815926325,0.96660163,3209.4,3208.3,0.00467508]
[1768815926516,0.96660163,3209.3,3208.3,0.00467508]
[1768815926716,0.96669577,3209.2,3208.3,0.00467508]
[1768815926923,0.00266224,3209.5,3208.3,0.00467508]
[1768815927223,0.96669733,3209.4,3208.3,0.00467508]
[1768815927422,0.96669733,3209.3,3208.3,0.00467508]
[1768815927624,0.96669733,3209.2,3208.3,0.00467508]
[1768815927824,0.00266224,3209.5,3208.3,0.00467508]
[1768815928026,0.96699271,3209.4,3208.3,0.00467508]
[1768815928225,0.96699271,3209.3,3208.3,0.00467508]
[1768815928426,0.96699271,3209.2,3208.3,0.00467508]
[1768815928628,0.00266224,3209.5,3208.3,0.00467508]
[1768815928827,0.96714262,3209.4,3208.3,0.00467508]
[1768815929028,0.96714262,3209.3,3208.3,0.00467508]
[1768815929224,0.96714262,3209.2,3208.3,0.00467508]
[1768815929423,0.00266224,3209.5,3208.3,0.00467508]
[1768815929721,0.96731857,3209.4,3208.3,0.00467508]
[1768815929920,0.96731857,3209.3,3208.3,0.00467508]
[1768815930122,0.96731857,3209.2,3208.3,0.00467508]
[1768815930321,0.00266224,3209.5,3208.3,0.00467508]
[1768815930527,0.96639481,3209.4,3208.3,0.00467508]
[1768815930727,0.96639481,3209.3,3208.3,0.00467508]
[1768815930930,0.96639481,3209.2,3208.3,0.00467508]
[1768815931230,0.96639481,3209.1,3208.3,0.00467508]
[1768815931430,0.00266224,3209.5,3208.3,0.00467508]
[1768815931628,0.96648094,3209.4,3208.3,0.00467508]
[1768815931818,0.96648094,3209.3,3208.3,0.00467508]
[1768815932018,0.96648094,3209.2,3208.3,0.00467508]
[1768815932219,0.96648094,3209.1,3208.3,0.00467508]
[1768815932430,0.00266224,3209.5,3208.3,0.00467508]
[1768815932633,0.96657664,3209.4,3208.3,0.00467508]
[1768815932821,0.96657664,3209.3,3208.3,0.00467508]
[1768815933023,0.96657664,3209.2,3208.3,0.00467508]
[1768815933222,0.96657664,3209.1,3208.3,0.00467508]
[1768815933424,0.00266224,3209.5,3208.3,0.00467508]
[1768815933620,0.96657823,3209.4,3208.3,0.00467508]
[1768815933829,0.96657823,3209.3,3208.3,0.00467508]
[1768815934026,0.96657823,3209.2,3208.3,0.00467508]
[1768815934229,0.96657823,3209.1,3208.3,0.00467508]
[1768815934430,0.00266224,3209.5,3208.3,0.00467508]
[1768815934629,0.96656652,3209.4,3208.3,0.00467508]
[1768815934929,0.96656652,3209.3,3208.3,0.00467508]
[1768815935228,0.96656652,3209.2,3208.3,0.00467508]
[1768815935428,0.96656652,3209.1,3208.3,0.00467508]
[1768815935636,0.00266224,3209.5,3208.3,0.00467508]
[1768815935832,0.96655313,3209.4,3208.3,0.00467508]
[1768815936032,0.96655313,3209.3,3208.3,0.00467508]
[1768815936220,0.96655313,3209.2,3208.3,0.00467508]
[1768815936425,0.96655313,3209.1,3208.3,0.00467508]
[1768815936622,0.00266224,3209.5,3208.3,0.00467508]
[1768815936825,0.96660264,3209.4,3208.3,0.00467508]
[1768815937036,0.00266224,3209.5,3208.3,0.00467508]
[1768815937037,0.96660264,3209.3,3208.3,0.00467508]
[1768815937238,0.96660475,3209.2,3208.3,0.00467508]
[1768815937434,0.96660475,3209.1,3208.3,0.00467508]
[1768815937632,0.00266224,3209.5,3208.3,0.00467508]
[1768815937828,0.96664841,3209.4,3208.3,0.00467508]
[1768815938032,0.96664841,3209.3,3208.3,0.00467508]
[1768815938233,0.96664841,3209.2,3208.3,0.00467508]
[1768815938441,0.96664841,3209.1,3208.3,0.00467508]
[1768815938737,0.00266224,3209.5,3208.3,0.00467508]
[1768815938928,0.9669977,3209.4,3208.3,0.16060508]
[1768815939129,0.9669977,3209.3,3208.3,0.16060508]
[1768815939341,0.9669977,3209.2,3208.3,0.16060508]
[1768815939543,0.96716637,3209.1,3208.3,0.16060508]
[1768815939743,0.00266224,3209.5,3208.3,0.16060508]
[1768815939940,0.96719005,3209.4,3208.3,0.16060508]
[1768815940238,0.96719005,3209.3,3208.3,0.16060508]
[1768815940440,0.96719005,3209.2,3208.3,0.16060508]
[1768815940739,0.96719005,3209.1,3208.3,0.16060508]
[1768815940938,0.00266224,3209.5,3208.3,0.16060508]
[1768815941237,0.96734249,3209.4,3208.3,0.16060508]
[1768815941536,0.96734249,3209.3,3208.3,0.16060508]
[1768815941739,0.96734249,3209.2,3208.3,0.16060508]
[1768815941936,0.96734249,3209.1,3208.3,0.16060508]
[1768815942139,0.00266224,3209.5,3208.3,0.16060508]
[1768815942338,0.96747628,3209.4,3208.3,0.16060508]
[1768815942541,0.96747628,3209.3,3208.3,0.16060508]
[1768815942740,0.96747628,3209.2,3208.3,0.16060508]
[1768815942940,0.96747628,3209.1,3208.3,0.16060508]
[1768815943136,0.00266224,3209.5,3208.3,0.16060508]
[1768815943337,0.9676519,3209.4,3208.3,0.16060508]
[1768815943535,0.9676519,3209.3,3208.3,0.16060508]
[1768815943738,0.9676519,3209.2,3208.3,0.16060508]
[1768815944038,0.9676519,3209.1,3208.3,0.16060508]
[1768815944239,0.00266224,3209.5,3208.3,0.16060508]
[1768815944436,0.96772124,3209.4,3208.3,0.16060508]
[1768815944642,0.96772124,3209.3,3208.3,0.16060508]
[1768815944946,0.96772124,3209.2,3208.3,0.16060508]
[1768815947750,1.03694227,3209.1,3208.3,0.16060508]
[1768815948140,0.96797066,3209.0,3208.3,0.16060508]
[1768815948444,1.03694227,3209.2,3208.3,0.16060508]
[1768815948642,0.96797106,3209.1,3208.3,0.16060508]
[1768815948844,0.96797106,3209.0,3208.3,0.16060508]
[1768815949044,1.03694227,3209.2,3208.3,0.16060508]
[1768815949244,0.96797066,3209.1,3208.3,0.16060508]